Cogmind - Beta 17.1 --- EXPLORER MODE // 2026.09.03 @ 22:10:59 Player: deadbabe Result: Destroyed by T5-SON(R) with Subdweller Beam Cannon Performance ------------- Evolutions (0) 0 Regions Visited (2) 400 Robots Destroyed (16) 80 Value Destroyed (340) 340 Prototype IDs (0) 0 Alien Tech Used (0) 0 Bonus (0) 0 TOTAL SCORE: 820 Bonus ------- None Cogmind --------- Core Integrity 0/250 Matter 186/300 Energy 248/250 System Corruption 0% Temperature Cool (9) Movement Core (350) Ox6 Location -10/Subcaves Parts ------- > --- POWER (1) -------- Ion Engine > --- PROPULSION (2) --- (None) > --- UTILITY (3) ------ Medium Storage Unit Visual Processing Unit Targeting Computer > --- WEAPON (2) ------- Assault Rifle Assault Rifle > --- INVENTORY (10) --- Light Ion Engine Aluminum Leg Aluminum Leg Improved Heat Sink Sensor Array Sensor Array Signal Interpreter Terrain Scanner Peak State ------------ > --- POWER ------------ Ion Engine > --- PROPULSION ------- Aluminum Leg Aluminum Leg > --- UTILITY ---------- Medium Storage Unit Visual Processing Unit Targeting Computer > --- WEAPON ----------- Assault Rifle Assault Rifle > --- INVENTORY -------- Aluminum Leg Aluminum Leg Improved Heat Sink Sensor Array Sensor Array Signal Interpreter Terrain Scanner Assault Rifle [Rating: 10] Favorites ----------- Power Ion Engine Engine Ion Engine Propulsion Aluminum Leg Leg Aluminum Leg Utility Targeting Computer Device Terrain Scanner Storage Medium Storage Unit Processor Targeting Computer Weapon Assault Rifle Ballistic Gun Assault Rifle Ballistic Cannon Light Cannon Build | -11 -10 -10 ------- Run | Yrd Mat Sub Slots Evolved 1 | . 1 . Power . | . . . Propulsion . | . . . Utility 1 | . 1 . Weapon . | . . . Parts Attached 18 | 7 10 1 Power 2 | 1 1 . Engine 2 | 1 1 . Core . | . . . Reactor . | . . . Propulsion 6 | 2 4 . Treads . | . . . Leg 6 | 2 4 . Wheel . | . . . Hover . | . . . Flight . | . . . Utility 5 | 2 3 . Device 2 | 1 1 . Storage 1 | . 1 . Processor 2 | 1 1 . Hackware . | . . . Protection . | . . . Artifact . | . . . Weapon 5 | 2 2 1 Energy Gun . | . . . Energy Cannon . | . . . Ballistic Gun 4 | 2 1 1 Ballistic Cannon 1 | . 1 . Launcher . | . . . Special Weapon . | . . . Impact Weapon . | . . . Slashing Weapon . | . . . Piercing Weapon . | . . . Special Melee Weapon . | . . . Unidentified Prototypes . | . . . Parts Lost 4 | . . 4 Power . | . . . Propulsion 2 | . . 2 Utility . | . . . Weapon 2 | . . 2 Highest Loss Streak 4 | . . 4 To Critical Strikes . | . . . Average Backups 7 | 1 7 9 Power . | . . 1 Propulsion 1 | . 1 2 Utility 3 | . 3 5 Weapon 1 | . 1 1 Tool/Special . | . . . Unused Backups 8 | . 3 5 Power 1 | . . 1 Propulsion 3 | . 2 1 Utility 4 | . 1 3 Weapon . | . . . Tool/Special . | . . . Average Slot Usage (%) 95 | . 94 98 Engine 11 | . 11 12 Leg 21 | . 21 23 Device 3 | . 4 . Storage 8 | . 7 12 Processor 24 | . 24 25 Ballistic Gun 20 | . 23 12 Ballistic Cannon 3 | . 1 11 Peak Build Rating 10 | 7 10 10 Average Rating 8 | 5 9 9 On Entrance 5 | . 7 10 Avg Prop Armor Cover (%) . | . . . Naked Turns . | . . . Heaviest Build 19 | 10 19 19 Greatest Support 20 | 20 20 20 Greatest Overweight (x) 2 | . 2 1 Average Overweight (x) . | . . . Largest Inventory Capacity 10 | 5 10 10 Average Capacity 8 | 5 8 10 Most Carried 10 | 4 10 10 Average Carried 7 | 1 7 9 Final Capacity 10 | 5 10 10 Final Carried 10 | 4 10 8 Class Distribution -------------------- 100% | Hacker-Mutant Dominant Class ---------------- Hacker-Mutant | -10/Materials Hacker-Mutant | -10/Subcaves Resources | -11 -10 -10 ----------- Run | Yrd Mat Sub Matter Collected 620 | 209 381 30 Remotely . | . . . Salvage Created 554 | . 486 68 Parts 41 | . 35 6 Haulers Intercepted 2 | . 2 . Recyclers Shooed . | . . . Parts Field Recycled . | . . . Retrieved Matter . | . . . Parts Self-Destructed . | . . . Prevented . | . . . Parts Restored . | . . . Kills | -11 -10 -10 ------- Run | Yrd Mat Sub Combat Hostiles Destroyed 10 | . 8 2 Guns 10 | . 8 2 Classes Destroyed 6 | . 5 1 Hauler 2 | . 2 . Recycler 1 | . 1 . Watcher 3 | . 3 . Swarmer 4 | . 4 . Grunt 4 | . 4 . Subdweller 2 | . . 2 Best Kill Streak 4 | . 4 1 Combat Bots Only 2 | . 2 1 Max Kills in Single Turn 1 | . 1 1 Gunslinging . | . . . Exploded . | . . . Melee . | . . . Uniques/NPCs Destroyed . | . . . Combat | -11 -10 -10 -------- Run | Yrd Mat Sub Hostile Shots Fired 93 | . 27 66 Missed 28 | . 11 17 Hits 65 | . 16 49 Projectile 65 | . 16 49 Critical Strikes 2 | . . 2 Damage Taken 865 | . 151 714 Core 252 | . 7 245 Absorbed by Shields . | . . . Ignored by Resistances 513 | . 94 419 Core Remaining (%) 100 | 100 . . Volleys Fired 67 | 7 30 30 Largest 2 | 1 2 2 Hottest 50 | 20 50 50 Shots Fired 120 | 7 59 54 Gun 94 | 7 57 30 Cannon 26 | . 2 24 Launcher . | . . . Special . | . . . Kinetic 120 | 7 59 54 Thermal . | . . . Explosive . | . . . Electromagnetic . | . . . Robot Hit Streak 14 | 7 14 14 Robot Miss Streak 1 | . 1 1 Penetration Max . | . . . Secondary Targets 1 | . 1 . Max Gunslinging Chain 1 | . 1 . Shots Hit Robots 101 | 7 47 47 Core Hits 29 | 1 21 7 Critical Kills . | . . . Critical Parts Destroyed . | . . . Critical Strikes . | . . . Melee Attacks . | . . . Impact . | . . . Slashing . | . . . Piercing . | . . . Sneak Attacks . | . . . Combat Hostiles . | . . . Follow-up Attacks . | . . . Damage Inflicted 1117 | 83 549 485 Guns 823 | 83 514 226 Cannons 294 | . 35 259 Explosions . | . . . Melee . | . . . Ramming . | . . . Kinetic 1117 | 83 549 485 Thermal . | . . . Explosive . | . . . Electromagnetic . | . . . Impact . | . . . Slashing . | . . . Piercing . | . . . Highest Corruption . | . . . Average Corruption . | . . . Corruption Purged . | . . . Corruption Blocked . | . . . Overload Shots . | . . . Overflow Damage . | . . . Projectiles . | . . . Explosions . | . . . Melee . | . . . Knockbacks 2 | . . 2 Impact . | . . . Kinetic 2 | . . 2 Secondary . | . . . Self-Inflicted Damage . | . . . Shots . | . . . Rammed . | . . . Targets Rammed . | . . . Kicked . | . . . Crushed . | . . . Highest Temperature 164 | . 10 164 Average Temperature 38 | . 6 88 Received Heat Transfer 419 | . 78 341 Siege Activations . | . . . Martial Activations . | . . . Shielding Activations . | . . . Robots Disrupted . | . . . Combat Hostiles . | . . . Robots Corrupted . | . . . Combat Hostiles . | . . . Parts Fried . | . . . Impact Corruptions . | . . . Robots Melted . | . . . Combat Hostiles . | . . . Parts Melted . | . . . Heat Transferred . | . . . Parts Sabotaged . | . . . Parts Stolen . | . . . Parts Stripped . | . . . Power Chain Reactions . | . . . Alert | -11 -10 -10 ------- Run | Yrd Mat Sub Maximum Alert Level . | . . . Low Security (%) 100 | 100 100 . Level 1 . | . . . Level 2 . | . . . Level 3 . | . . . Level 4 . | . . . Level 5 . | . . . High Security . | . . . Max Security . | . . . Peak Influence 57 | . 57 . Initial . | . . . Average 7 | . 8 . Influence Increases 242 | . 242 . Destroy 0b10 Robot/C 160 | . 160 . Destroy 0b10 Robot/NC 30 | . 30 . Destroy Leader 50 | . 50 . Successful Hack 2 | . 2 . Influence Decreases 242 | . 242 . Time Decay 242 | . 242 . Squads Dispatched . | . . . Investigation . | . . . Extermination . | . . . Reinforcement . | . . . Assault . | . . . Garrison . | . . . Intercept . | . . . Searches Triggered . | . . . Construction Impeded . | . . . Haulers Reinforced . | . . . Active Scanning Responses . | . . . Cargo Convoy Interrupts . | . . . Stealth | -11 -10 -10 --------- Run | Yrd Mat Sub Distress Signals 1 | . 1 . Communications Jammed . | . . . Distress Signals . | . . . Times Spotted 16 | . 11 5 Peak Tracking Total 4 | . 3 4 Tactical Retreats . | . . . Traps | -11 -10 -10 ------- Run | Yrd Mat Sub Traps Triggered 6 | . 6 . Indirectly . | . . . Trap Hack Attempts . | . . . Triggered . | . . . Disarmed . | . . . Reprogrammed . | . . . Reused . | . . . Traps Extracted . | . . . Installed . | . . . Triggered . | . . . Machines | -11 -10 -10 ---------- Run | Yrd Mat Sub Machines Disabled . | . . . Max in Single Turn . | . . . Machines Repaired . | . . . Machines Dismantled . | . . . Machines Sabotaged . | . . . Overloaded Fab Kills . | . . . Hacking | -11 -10 -10 --------- Run | Yrd Mat Sub Machines Accessed 3 | . 3 . Terminals 2 | . 2 . Fabricators . | . . . Repair Stations . | . . . Recycling Units 1 | . 1 . Scanalyzers . | . . . Garrison Access . | . . . Total Hacks 4 | . 4 . Successful 2 | . 2 . Failed 2 | . 2 . Catastrophic 1 | . 1 . Database Lockouts . | . . . Manual . | . . . Terminals 3 | . 3 . Fabricators . | . . . Repair Stations . | . . . Recycling Units 1 | . 1 . Scanalyzers . | . . . Garrison Access . | . . . Terminal Hacks 2 | . 2 . Robot Analysis 2 | . 2 . Fabricator Hacks . | . . . Repair Station Hacks . | . . . Recycling Unit Hacks . | . . . Scanalyzer . | . . . Garrison Access Hacks . | . . . Unauthorized Hacks . | . . . Terminals . | . . . Fabricators . | . . . Repair Stations . | . . . Recycling Units . | . . . Scanalyzers . | . . . Garrison Access . | . . . Data Cores Recovered . | . . . Used . | . . . Hacking Detections 2 | . 2 . Full Trace Events . | . . . Feedback Events . | . . . Feedback Blocked . | . . . Robot Schematics Acquired . | . . . Robots Built . | . . . Authchips . | . . . Time . | . . . Total Robot Build Rating . | . . . Part Schematics Acquired . | . . . Parts Built . | . . . Authchips . | . . . Time . | . . . Total Part Build Rating . | . . . Part Studies Acquired . | . . . Parts Repaired . | . . . Time . | . . . Parts Recycled . | . . . Recycled Matter . | . . . Retrieved Matter . | . . . Retrieved Components . | . . . Parts Scanalyzed . | . . . Part Schematics Acquired . | . . . Parts Damaged . | . . . Bothacking | -11 -10 -10 ------------ Run | Yrd Mat Sub Used RIF Installer . | . . . Robots Hacked . | . . . Non-combat . | . . . Combat . | . . . Robot Hacks Applied . | . . . Relay Couplers Released . | . . . Fabnet Peak Effective % . | . . . Robots Rewired . | . . . Allies Hacked . | . . . Hacks Repelled . | . . . Allies | -11 -10 -10 -------- Run | Yrd Mat Sub Total Allies . | . . . Largest Group . | . . . Highest-Rated Group . | . . . Highest-Rated Ally . | . . . Total Orders . | . . . Ally Attacks . | . . . Total Damage . | . . . Kills . | . . . Allies Corrupted . | . . . Allies Melted . | . . . Intel | -11 -10 -10 ------- Run | Yrd Mat Sub Active Infowar (turns) 1316 | 45 1032 239 Optics 1208 | . 969 239 Sensors 153 | . 153 . Terrain 284 | 45 239 . Robot Analysis Total 2 | . 2 . Derelict Logs Recovered . | . . . Drone Launches . | . . . Drone Recoveries . | . . . Exploration | -11 -10 -10 ------------- Run | Yrd Mat Sub Turns Passed 1356 | 85 1032 239 Spaces Moved 880 | 51 698 131 Core 7 | 5 2 . Treads . | . . . Legs 873 | 46 696 131 Wheels . | . . . Hover . | . . . Flight . | . . . Fastest Speed 50 | 50 50 120 Average Speed 121 | 113 122 120 Slowest Speed 190 | 120 190 190 Overloaded Moves . | . . . Propulsion Burnouts . | . . . Robots Hopped . | . . . Potential Cave-ins . | . . . Cave-ins Triggered . | . . . Exploration Rate (%) 36 | 5 91 14 Regions Visited 2 Branch Regions 1 Pre-discovered Areas . | . . . Known Exits Taken 2 | 1 1 . Unknown Exits Taken . | . . . Scrap Searched . | . . . Spaces Dug . | . . . Terrain Destroyed . | . . . Melee . | . . . Projectile . | . . . AOE . | . . . Terrain Rammed . | . . . Walls Destroyed . | . . . Machines Disabled . | . . . Actions | -11 -10 -10 --------- Run | Yrd Mat Sub Total 1045 | 68 813 164 Wait 60 | . 59 1 Move 878 | 50 697 131 Hop . | . . . Pick Up 11 | 4 7 . Fast Attach 14 | 7 7 . Attach 3 | . 1 2 Detach 1 | . 1 . Swap 6 | . 6 . Drop 5 | . 5 . Fire 67 | 7 30 30 Melee . | . . . Ram . | . . . Kick . | . . . Crush . | . . . Escape Stasis . | . . . Rewire . | . . . Trap . | . . . Miscellaneous . | . . . Route ------- -11/Scrapyard -10/Materials (discovered 4 exits: *Mat x2 / *Min / *Sub) -10/Subcaves History --------- Turn | Location | Event 3 | -11/Scrapyard | Identified exit to Materials 3 | -11/Scrapyard | Discovered exit to Materials (range 16) 86 | -11/Scrapyard | Entered Materials 86 | -10/Materials | Evolved 1 slot: Utility x1 155 | -10/Materials | Identified exit to Mines 155 | -10/Materials | Discovered exit to Mines (range 8) 309 | -10/Materials | Build established: Hacker-Mutant 793 | -10/Materials | Identified exit to Materials 793 | -10/Materials | Discovered exit to Materials (range 5) 1001 | -10/Materials | Discovered exit to Materials (range 18) 1103 | -10/Materials | Identified exit to Subcaves 1103 | -10/Materials | Discovered exit to Subcaves (range 9) 1118 | -10/Materials | Entered Subcaves 1119 | -10/Subcaves | Approached by a straggling Scientist 1346 | -10/Subcaves | Core integrity fell below 50% 1354 | -10/Subcaves | Core integrity fell below 20% 1357 | -10/Subcaves | Destroyed by T5-SON(R) with Subdweller Beam Cannon Last Messages --------------- 01123_ S4-S3Z(c): "Hey, let me tag along and I can get us both out of this nasty situation. At least I think I can... The group I got separated from was talking about a shortcut back to the UFD." S4-S3Z(c): "I think it's somewhere southeast of here" 01239_ VU-LF8(R) destroyed. 01245_ Acquired 17 matter. 01246_ Acquired 9 matter. 01247_ Acquired 4 matter. 01250_ Subatomizers dissect the Sub. Optics. S4-S3Z(c): "I think it's somewhere southeast of here" 01299_ WR-R0S(R) knocked back. 01316_ Critical hit (Meltdown: +170). S4-S3Z(c): "I think it's somewhere southeast of here" 01331_ 09-A2J(R) destroyed. 01333_ Aluminum Leg destroyed. 01333_ Lgt. Assault Rifle destroyed. 01336_ RR-9BR(R) affixes Scrap Shield Fragment to Scrap Shield. 01342_ WR-R0S(R) knocked back. 01343_ Lgt. Cannon destroyed. 01351_ Aluminum Leg destroyed. Map ----- +----------------------------------------------------+ | ?????????????????????????????????????????????????? | | ?????????????????????????????????????????????????? | | ?????????????????????????????????????????????????? | | ?????????????????????????????????????????????????? | | ########??????? ?????????????????????????????????? | | ## ##????? #######??????????????????????????? | | ##???? #??? ????????????????????? | | #???? ???? ????????????????????? | | # #????# #????? !&#???????????????????? | | # #####?# #?????# |%#???????????????????? | | ## ## ### #?????? [ #???????????????????? | | ##### #####?? R ???????????????????? | | #?## #?? ????????????????????? | | ##??## ## ##? ????????????????????? | | ##????### ## #?# ????????????????????? | | ????????#### #???# #????????????????????? | | ???????????## ##??##% #????????????????????? | | ????????????# #???# ##???????????????????? | | ??????#####?# #???# ????????????????????? | | ??????# ### #?### ####?????? ??????????? | | ???????# #?# ##??# ?????????? | | ???????# ! ### % # #????????? | | ???????# = ### ## "" #?????????? | | ??????# #& #### ## ; RR "" % #?????????? | | ??????# ####### # # #?????????? | | ?????#" #????# ## # @######?????????????????? | | ???? #???## ## # #?##??????????????????? | | ??? #??## # #""#??????????????????? | | ??# #"" ### ## c "" "##?????????????????? | | ?"" ###" "" """?????????????????? | | ?""???# """"""?????????????????? | | ? ????## ##### "" """"?????????????????? | | ???????# ????# "" ""##?????????????????? | | ???????## ?????# "" "##??????????????????? | | ????????# ?????## "#####???????????????????? | | ????????? ??????## ""#???????????????????????? | | ????????? ???????# ""#???????????????????????? | | ????????? ??????# ####???????????????????????? | | ????????? ??????## ####??????????????????????????? | | ?????????????????###?????????????????????????????? | | ?????????????????????????????????????????????????? | | ?????????????????????????????????????????????????? | | ?????????????????????????????????????????????????? | | ?????????????????????????????????????????????????? | | ?????????????????????????????????????????????????? | | ?????????????????????????????????????????????????? | | ?????????????????????????????????????????????????? | | ?????????????????????????????????????????????????? | | ?????????????????????????????????????????????????? | | ?????????????????????????????????????????????????? | +----------------------------------------------------+ Best States ------------- Heat Dissipation 25 Energy Generation 10 Energy Capacity 250 Matter Stores 300 Matter Capacity 300 Sight Range 18 Robot Scan Range 14 Terrain Scan Range 14 Terrain Scan Density 10 Resistance: KI 35 Resistance: TH 35 Resistance: EX 35 Resistance: EM 35 Resistance: I 35 Resistance: S 35 Resistance: P 35 Evasion (%) 55 Targeting Accuracy 5 Offensive Hacking 20 Item Schematics ----------------- None Robot Schematics ------------------ None Fabricated ------------ Nothing Repaired ---------- Nothing Studied --------- None Alien Tech Used ----------------- None Achievements -------------- None Challenges ------------ None Game ------ Seed TransportUltimateRouter Manual? 0 Play Time 00:18:43 Cumulative 133.4 hours Start 2026.09.03 @ 21:16:03 End 2026.09.03 @ 22:10:59 Sessions 1 Manual Loads 0 Difficulty Explorer Special Mode None Game No. 8 Rogue 0 Adventurer 0 Explorer 8 Win Type - Total 0 Types 0/0/0/0/0/0/0/0/0/0 Lore% 11 Gallery% 26 Achievement% 25 Wizard Run 0 Options --------- Layout 0 ASCII 0 Keyboard 0 Movement Mouse Keybinds 0 Fullscreen 1 Font 18/SmallcapsGlow Map View 76x50 Zoom Use 0% Tactical HUD 1 Map Filters NONE Filters NONE Steam 1 RUN: 5048b9c8-03f2-4c04-9f82-0874d216881b